[Event "Titled Tuesday Blitz July 05 Early 2022"]
[White "Lashkin, Jegor"]
[Black "Janaszak, Dawid"]
[WhiteFideId "13907808"]
[BlackFideId "1119206"]
[WhiteElo "2368"]
[BlackElo "2199"]
[Result "1-0"]
[Round "04"]
[TimeControl "180+1"]
[Date "2022.07.05"]
[WhiteClock "0:00:53"]
[BlackClock "0:00:15"]

1. d4 {[%clk 0:03:00]}  Nf6 {[%clk 0:02:58]} 2. c4 {[%clk 0:03:00]}  e6 {[%clk 0:02:56]} 3. Nf3 {[%clk 0:03:00]}  d5 {[%clk 0:02:56]} 4. Nc3 {[%clk 0:03:00]}  Bb4 {[%clk 0:02:55]} 5. cxd5 {[%clk 0:02:56]}  exd5 {[%clk 0:02:54]} 6. Bg5 {[%clk 0:02:56]}  c6 {[%clk 0:02:53]} 7. e3 {[%clk 0:02:56]}  Bf5 {[%clk 0:02:50]} 8. Qb3 {[%clk 0:02:55]}  Qb6 {[%clk 0:02:42]} 9. Nh4 {[%clk 0:02:51]}  Be6 {[%clk 0:02:36]} 10. Bxf6 {[%clk 0:02:51]}  gxf6 {[%clk 0:02:37]} 11. Bd3 {[%clk 0:02:48]}  Na6 {[%clk 0:02:32]} 12. O-O {[%clk 0:02:43]}  Nc7 {[%clk 0:02:28]} 13. Qc2 {[%clk 0:02:42]}  h5 {[%clk 0:02:15]} 14. Na4 {[%clk 0:02:37]}  Qa5 {[%clk 0:02:08]} 15. a3 {[%clk 0:02:37]}  Be7 {[%clk 0:01:58]} 16. b4 {[%clk 0:02:37]}  Bxb4 {[%clk 0:01:59]} 17. axb4 {[%clk 0:02:37]}  Qxb4 {[%clk 0:02:00]} 18. Nc5 {[%clk 0:02:37]}  Qb6 {[%clk 0:01:39]} 19. Rfb1 {[%clk 0:02:18]}  Nb5 {[%clk 0:01:39]} 20. Nxe6 {[%clk 0:02:18]}  fxe6 {[%clk 0:01:39]} 21. Bxb5 {[%clk 0:02:18]}  cxb5 {[%clk 0:01:39]} 22. Qg6+ {[%clk 0:02:19]}  Kd7 {[%clk 0:01:33]} 23. Qxf6 {[%clk 0:02:18]}  Rhe8 {[%clk 0:01:23]} 24. Ng6 {[%clk 0:02:17]}  a6 {[%clk 0:01:22]} 25. Qf7+ {[%clk 0:02:16]}  Kd6 {[%clk 0:01:19]} 26. Ne5 {[%clk 0:02:13]}  Qc7 {[%clk 0:01:17]} 27. Qf4 {[%clk 0:02:12]}  Rf8 {[%clk 0:01:09]} 28. Qh4 {[%clk 0:02:05]}  Rac8 {[%clk 0:01:01]} 29. h3 {[%clk 0:01:51]}  Rf5 {[%clk 0:00:59]} 30. Qg3 {[%clk 0:01:47]}  h4 {[%clk 0:00:46]} 31. Qxh4 {[%clk 0:01:44]}  Qc2 {[%clk 0:00:43]} 32. Qg3 {[%clk 0:01:38]}  Ke7 {[%clk 0:00:27]} 33. Qg7+ {[%clk 0:01:34]}  Ke8 {[%clk 0:00:26]} 34. Qd7+ {[%clk 0:01:23]}  Kf8 {[%clk 0:00:25]} 35. Rb2 {[%clk 0:01:03]}  Qxb2 {[%clk 0:00:19]} 36. Qxc8+ {[%clk 0:01:03]}  Kg7 {[%clk 0:00:20]} 37. Rf1 {[%clk 0:00:59]}  b4 {[%clk 0:00:19]} 38. Qxe6 {[%clk 0:00:58]}  Rf8 {[%clk 0:00:18]} 39. Qg6+ {[%clk 0:00:57]}  Kh8 {[%clk 0:00:17]} 40. Nd7 {[%clk 0:00:53]}  Rg8 {[%clk 0:00:15]} 41. Qh6# {[%clk 0:00:53]} 1-0


[Site "https://www.chess.com"]

[Event "Titled Tuesday Blitz July 05 Early 2022"]
[White "Lazavik, Denis"]
[Black "Aggelis, Nikolaos"]
[WhiteFideId "13515110"]
[BlackFideId "4213220"]
[WhiteElo "2437"]
[BlackElo "2154"]
[Result "1-0"]
[Round "04"]
[TimeControl "180+1"]
[Date "2022.07.05"]
[WhiteClock "0:00:56"]
[BlackClock "0:00:15"]

1. d4 {[%clk 0:03:00]}  Nf6 {[%clk 0:02:57]} 2. c4 {[%clk 0:03:01]}  g6 {[%clk 0:02:58]} 3. g3 {[%clk 0:03:00]}  Bg7 {[%clk 0:02:57]} 4. Bg2 {[%clk 0:03:00]}  d5 {[%clk 0:02:58]} 5. cxd5 {[%clk 0:03:01]}  Nxd5 {[%clk 0:02:58]} 6. Nf3 {[%clk 0:03:01]}  O-O {[%clk 0:02:58]} 7. O-O {[%clk 0:03:02]}  Nc6 {[%clk 0:02:57]} 8. Nc3 {[%clk 0:03:01]}  e5 {[%clk 0:02:50]} 9. Bg5 {[%clk 0:02:57]}  f6 {[%clk 0:02:50]} 10. Bc1 {[%clk 0:02:58]}  Nxc3 {[%clk 0:02:50]} 11. bxc3 {[%clk 0:02:59]}  e4 {[%clk 0:02:51]} 12. Nd2 {[%clk 0:02:58]}  f5 {[%clk 0:02:51]} 13. Rb1 {[%clk 0:02:54]}  Kh8 {[%clk 0:02:50]} 14. f3 {[%clk 0:02:51]}  exf3 {[%clk 0:02:48]} 15. Nxf3 {[%clk 0:02:51]}  Qe7 {[%clk 0:02:23]} 16. Bg5 {[%clk 0:02:42]}  Qf7 {[%clk 0:02:21]} 17. Qd2 {[%clk 0:02:37]}  Rb8 {[%clk 0:02:15]} 18. e4 {[%clk 0:02:25]}  Qc4 {[%clk 0:01:40]} 19. Nh4 {[%clk 0:01:45]}  Be6 {[%clk 0:00:46]} 20. exf5 {[%clk 0:01:17]}  Bxf5 {[%clk 0:00:41]} 21. Nxf5 {[%clk 0:01:15]}  gxf5 {[%clk 0:00:41]} 22. Rf4 {[%clk 0:01:08]}  h6 {[%clk 0:00:34]} 23. Bxh6 {[%clk 0:01:03]}  Bxh6 {[%clk 0:00:15]} 24. Rh4 {[%clk 0:01:02]}  Rf6 {[%clk 0:00:16]} 25. Rxh6+ {[%clk 0:01:02]}  Rxh6 {[%clk 0:00:17]} 26. Qxh6+ {[%clk 0:01:02]}  Kg8 {[%clk 0:00:17]} 27. Rf1 {[%clk 0:00:57]}  Rf8 {[%clk 0:00:14]} 28. Qg6+ {[%clk 0:00:55]}  Kh8 {[%clk 0:00:15]} 29. Rf4 {[%clk 0:00:56]} 1-0


[Site "https://www.chess.com"]

[Event "Titled Tuesday Blitz July 05 Early 2022"]
[White "Martinez Alcantara, Jose Eduardo"]
[Black "Bachmann, Axel"]
[WhiteFideId "3805662"]
[BlackFideId "3700488"]
[WhiteElo "2703"]
[BlackElo "2587"]
[Result "1-0"]
[Round "04"]
[TimeControl "180+1"]
[Date "2022.07.05"]
[WhiteClock "0:01:28"]
[BlackClock "0:00:13"]

1. e4 {[%clk 0:03:00]}  e5 {[%clk 0:02:57]} 2. Nf3 {[%clk 0:03:01]}  Nc6 {[%clk 0:02:57]} 3. Bb5 {[%clk 0:03:02]}  a6 {[%clk 0:02:57]} 4. Ba4 {[%clk 0:03:02]}  Nf6 {[%clk 0:02:57]} 5. d3 {[%clk 0:03:03]}  b5 {[%clk 0:02:44]} 6. Bb3 {[%clk 0:03:02]}  Bc5 {[%clk 0:02:43]} 7. c3 {[%clk 0:03:02]}  d6 {[%clk 0:02:43]} 8. Bg5 {[%clk 0:03:02]}  h6 {[%clk 0:02:38]} 9. Bh4 {[%clk 0:03:02]}  g5 {[%clk 0:02:36]} 10. Bg3 {[%clk 0:03:02]}  Bb6 {[%clk 0:02:31]} 11. Nbd2 {[%clk 0:03:02]}  Nh5 {[%clk 0:02:24]} 12. Nf1 {[%clk 0:02:55]}  Nf4 {[%clk 0:02:17]} 13. Ne3 {[%clk 0:02:53]}  Na5 {[%clk 0:01:35]} 14. Bc2 {[%clk 0:02:51]}  Bxe3 {[%clk 0:01:30]} 15. fxe3 {[%clk 0:02:52]}  Nxg2+ {[%clk 0:01:31]} 16. Kd2 {[%clk 0:02:52]}  g4 {[%clk 0:01:15]} 17. Ne1 {[%clk 0:02:52]}  Nh4 {[%clk 0:01:05]} 18. Qe2 {[%clk 0:02:52]}  Qg5 {[%clk 0:01:03]} 19. Qf2 {[%clk 0:02:46]}  Ng6 {[%clk 0:01:02]} 20. Ng2 {[%clk 0:02:44]}  Be6 {[%clk 0:01:01]} 21. Nh4 {[%clk 0:02:35]}  Rd8 {[%clk 0:00:47]} 22. b4 {[%clk 0:02:13]}  Nc6 {[%clk 0:00:46]} 23. a4 {[%clk 0:02:14]}  d5 {[%clk 0:00:45]} 24. Nxg6 {[%clk 0:02:14]}  Qxg6 {[%clk 0:00:44]} 25. Bh4 {[%clk 0:02:15]}  O-O {[%clk 0:00:33]} 26. Bxd8 {[%clk 0:02:13]}  Rxd8 {[%clk 0:00:34]} 27. axb5 {[%clk 0:02:11]}  axb5 {[%clk 0:00:35]} 28. exd5 {[%clk 0:02:02]}  Bxd5 {[%clk 0:00:36]} 29. Rhg1 {[%clk 0:02:02]}  h5 {[%clk 0:00:19]} 30. Kc1 {[%clk 0:01:46]}  Bf3 {[%clk 0:00:20]} 31. e4 {[%clk 0:01:35]}  Ne7 {[%clk 0:00:15]} 32. Kb2 {[%clk 0:01:33]}  Rd6 {[%clk 0:00:12]} 33. Ra5 {[%clk 0:01:31]}  c6 {[%clk 0:00:12]} 34. Ra7 {[%clk 0:01:29]}  Re6 {[%clk 0:00:13]} 35. Bb3 {[%clk 0:01:28]} 1-0


[Site "https://www.chess.com"]

[Event "Titled Tuesday Blitz July 05 Early 2022"]
[White "Mindlin, Alon"]
[Black "Melkumyan, Hrant"]
[WhiteFideId "2800071"]
[BlackFideId "13302485"]
[WhiteElo "2390"]
[BlackElo "2604"]
[Result "0-1"]
[Round "04"]
[TimeControl "180+1"]
[Date "2022.07.05"]
[WhiteClock "0:00:34"]
[BlackClock "0:00:20"]

1. d4 {[%clk 0:03:00]}  Nf6 {[%clk 0:02:58]} 2. c4 {[%clk 0:03:00]}  g6 {[%clk 0:02:59]} 3. Nc3 {[%clk 0:03:00]}  Bg7 {[%clk 0:02:59]} 4. e4 {[%clk 0:03:00]}  d6 {[%clk 0:03:00]} 5. f3 {[%clk 0:03:00]}  O-O {[%clk 0:02:56]} 6. Be3 {[%clk 0:03:00]}  a6 {[%clk 0:02:52]} 7. Bd3 {[%clk 0:02:54]}  c5 {[%clk 0:02:45]} 8. Nge2 {[%clk 0:02:53]}  Nc6 {[%clk 0:02:40]} 9. d5 {[%clk 0:02:33]}  Ne5 {[%clk 0:02:39]} 10. a4 {[%clk 0:02:30]}  e6 {[%clk 0:02:38]} 11. O-O {[%clk 0:02:29]}  exd5 {[%clk 0:02:38]} 12. cxd5 {[%clk 0:02:30]}  Re8 {[%clk 0:02:37]} 13. Rb1 {[%clk 0:02:24]}  Nfd7 {[%clk 0:02:35]} 14. Nf4 {[%clk 0:02:20]}  Nxd3 {[%clk 0:02:28]} 15. Nxd3 {[%clk 0:02:20]}  Ne5 {[%clk 0:02:29]} 16. Nxe5 {[%clk 0:02:17]}  Bxe5 {[%clk 0:02:30]} 17. Qd2 {[%clk 0:02:16]}  Qh4 {[%clk 0:02:16]} 18. g3 {[%clk 0:02:11]}  Qf6 {[%clk 0:02:16]} 19. f4 {[%clk 0:02:05]}  Bxc3 {[%clk 0:02:13]} 20. Qxc3 {[%clk 0:01:59]}  Qxc3 {[%clk 0:02:12]} 21. bxc3 {[%clk 0:02:00]}  Rxe4 {[%clk 0:02:12]} 22. Rfe1 {[%clk 0:01:56]}  Bh3 {[%clk 0:01:48]} 23. Rxb7 {[%clk 0:01:53]}  Rae8 {[%clk 0:01:48]} 24. Kf2 {[%clk 0:01:52]}  Rxa4 {[%clk 0:01:45]} 25. Bd4 {[%clk 0:01:50]}  Ra2+ {[%clk 0:01:32]} 26. Kf3 {[%clk 0:01:48]}  Bg2+ {[%clk 0:01:13]} 27. Kg4 {[%clk 0:01:39]}  f5+ {[%clk 0:01:12]} 28. Kg5 {[%clk 0:01:38]}  Rxe1 {[%clk 0:00:54]} 29. Kf6 {[%clk 0:01:38]}  Rae2 {[%clk 0:00:51]} 30. Be5 {[%clk 0:01:38]}  h5 {[%clk 0:00:27]} 31. Kxg6 {[%clk 0:01:32]}  Kf8 {[%clk 0:00:25]} 32. Kf6 {[%clk 0:00:51]}  Ke8 {[%clk 0:00:25]} 33. Ke6 {[%clk 0:00:51]}  Rxe5+ {[%clk 0:00:25]} 34. fxe5 {[%clk 0:00:50]}  Rxe5+ {[%clk 0:00:25]} 35. Kf6 {[%clk 0:00:44]}  Rxd5 {[%clk 0:00:25]} 36. Ra7 {[%clk 0:00:40]}  Kd8 {[%clk 0:00:23]} 37. Ke6 {[%clk 0:00:40]}  Rd2 {[%clk 0:00:20]} 38. Rxa6 {[%clk 0:00:37]}  Kc7 {[%clk 0:00:20]} 39. Kxf5 {[%clk 0:00:36]}  Bb7 {[%clk 0:00:20]} 40. Ra2 {[%clk 0:00:34]}  Rxa2 {[%clk 0:00:20]} 0-1


[Site "https://www.chess.com"]

[Event "Titled Tuesday Blitz July 05 Early 2022"]
[White "Rozman, Levy"]
[Black "Hansen, Eric"]
[WhiteFideId "2039877"]
[BlackFideId "2606771"]
[WhiteElo "2376"]
[BlackElo "2568"]
[Result "0-1"]
[Round "04"]
[TimeControl "180+1"]
[Date "2022.07.05"]
[WhiteClock "0:00:01"]
[BlackClock "0:00:15"]

1. e4 {[%clk 0:03:00]}  c5 {[%clk 0:02:53]} 2. a3 {[%clk 0:03:00]}  d5 {[%clk 0:02:50]} 3. exd5 {[%clk 0:02:59]}  Qxd5 {[%clk 0:02:44]} 4. Nf3 {[%clk 0:02:59]}  Nc6 {[%clk 0:02:42]} 5. Nc3 {[%clk 0:02:56]}  Qd8 {[%clk 0:02:41]} 6. Bb5 {[%clk 0:02:56]}  Bd7 {[%clk 0:02:41]} 7. O-O {[%clk 0:02:53]}  Nf6 {[%clk 0:02:40]} 8. d4 {[%clk 0:02:37]}  cxd4 {[%clk 0:02:40]} 9. Nxd4 {[%clk 0:02:35]}  Nxd4 {[%clk 0:02:38]} 10. Qxd4 {[%clk 0:02:36]}  Bxb5 {[%clk 0:02:39]} 11. Nxb5 {[%clk 0:02:27]}  Qxd4 {[%clk 0:02:38]} 12. Nxd4 {[%clk 0:02:28]}  Rc8 {[%clk 0:02:34]} 13. c3 {[%clk 0:02:20]}  e6 {[%clk 0:02:32]} 14. a4 {[%clk 0:02:07]}  a6 {[%clk 0:02:24]} 15. Bf4 {[%clk 0:02:00]}  Nd5 {[%clk 0:02:08]} 16. Bg3 {[%clk 0:02:00]}  Rc4 {[%clk 0:02:00]} 17. Nb3 {[%clk 0:01:54]}  b6 {[%clk 0:01:54]} 18. Rfd1 {[%clk 0:01:48]}  h5 {[%clk 0:01:51]} 19. f3 {[%clk 0:01:24]}  h4 {[%clk 0:01:42]} 20. Bf2 {[%clk 0:01:24]}  g5 {[%clk 0:01:43]} 21. Rd4 {[%clk 0:01:14]}  Rc6 {[%clk 0:01:39]} 22. Re1 {[%clk 0:01:08]}  Be7 {[%clk 0:01:36]} 23. Rde4 {[%clk 0:00:51]}  O-O {[%clk 0:01:04]} 24. Nd4 {[%clk 0:00:41]}  Rc7 {[%clk 0:01:04]} 25. g3 {[%clk 0:00:38]}  hxg3 {[%clk 0:01:00]} 26. hxg3 {[%clk 0:00:38]}  Bf6 {[%clk 0:00:55]} 27. f4 {[%clk 0:00:30]}  gxf4 {[%clk 0:00:42]} 28. gxf4 {[%clk 0:00:30]}  Rd8 {[%clk 0:00:39]} 29. f5 {[%clk 0:00:21]}  e5 {[%clk 0:00:32]} 30. Rg4+ {[%clk 0:00:16]}  Kf8 {[%clk 0:00:30]} 31. Nf3 {[%clk 0:00:16]}  Re8 {[%clk 0:00:25]} 32. c4 {[%clk 0:00:14]}  Nf4 {[%clk 0:00:23]} 33. Bxb6 {[%clk 0:00:13]}  Rxc4 {[%clk 0:00:23]} 34. Kh1 {[%clk 0:00:08]}  Ke7 {[%clk 0:00:14]} 35. Nxe5 {[%clk 0:00:03]}  Rh8+ {[%clk 0:00:14]} 36. Kg1 {[%clk 0:00:03]}  Bxe5 {[%clk 0:00:13]} 37. Rxe5+ {[%clk 0:00:03]}  Kf6 {[%clk 0:00:14]} 38. Re1 {[%clk 0:00:02]}  Nh3+ {[%clk 0:00:13]} 39. Kg2 {[%clk 0:00:02]}  Rxg4+ {[%clk 0:00:14]} 40. Kf3 {[%clk 0:00:02]}  Rb4 {[%clk 0:00:14]} 41. Bc5 {[%clk 0:00:01]}  Ng5+ {[%clk 0:00:15]} 42. Kg2 {[%clk 0:00:01]}  Rg4+ {[%clk 0:00:15]} 0-1


[Site "https://www.chess.com"]

[Event "Titled Tuesday Blitz July 05 Early 2022"]
[White "Severino, Sander"]
[Black "Sjugirov, Sanan"]
[WhiteFideId "5204100"]
[BlackFideId "4189302"]
[WhiteElo "2408"]
[BlackElo "2609"]
[Result "1/2-1/2"]
[Round "04"]
[TimeControl "180+1"]
[Date "2022.07.05"]
[WhiteClock "0:00:08"]
[BlackClock "0:01:57"]

1. d4 {[%clk 0:03:00]}  Nf6 {[%clk 0:03:00]} 2. c4 {[%clk 0:03:00]}  e6 {[%clk 0:03:00]} 3. Nf3 {[%clk 0:02:59]}  b6 {[%clk 0:03:00]} 4. g3 {[%clk 0:02:57]}  Bb7 {[%clk 0:03:01]} 5. Bg2 {[%clk 0:02:57]}  Bb4+ {[%clk 0:03:02]} 6. Bd2 {[%clk 0:02:56]}  c5 {[%clk 0:03:02]} 7. O-O {[%clk 0:02:55]}  O-O {[%clk 0:03:02]} 8. Re1 {[%clk 0:02:50]}  d6 {[%clk 0:03:00]} 9. Bxb4 {[%clk 0:02:47]}  cxb4 {[%clk 0:03:01]} 10. a3 {[%clk 0:02:47]}  bxa3 {[%clk 0:03:01]} 11. Nxa3 {[%clk 0:02:47]}  a5 {[%clk 0:02:53]} 12. Qb3 {[%clk 0:02:44]}  Na6 {[%clk 0:02:52]} 13. Nc2 {[%clk 0:02:23]}  Rc8 {[%clk 0:02:49]} 14. Rac1 {[%clk 0:02:05]}  Qc7 {[%clk 0:02:48]} 15. Na3 {[%clk 0:02:04]}  Nb4 {[%clk 0:02:47]} 16. Bf1 {[%clk 0:01:55]}  Ne4 {[%clk 0:02:44]} 17. Nb5 {[%clk 0:01:48]}  Qe7 {[%clk 0:02:44]} 18. Nc3 {[%clk 0:01:42]}  Nf6 {[%clk 0:02:29]} 19. e4 {[%clk 0:01:40]}  Nd7 {[%clk 0:02:26]} 20. Na2 {[%clk 0:01:32]}  Nxa2 {[%clk 0:02:26]} 21. Qxa2 {[%clk 0:01:33]}  Nf6 {[%clk 0:02:22]} 22. Bd3 {[%clk 0:01:31]}  e5 {[%clk 0:02:22]} 23. Qa3 {[%clk 0:01:25]}  Qc7 {[%clk 0:02:21]} 24. b4 {[%clk 0:01:19]}  axb4 {[%clk 0:02:20]} 25. Qxb4 {[%clk 0:01:20]}  Rfe8 {[%clk 0:02:20]} 26. d5 {[%clk 0:01:10]}  Nd7 {[%clk 0:02:20]} 27. Rb1 {[%clk 0:01:08]}  Ra8 {[%clk 0:02:20]} 28. Ra1 {[%clk 0:01:06]}  Ra5 {[%clk 0:02:19]} 29. Nd2 {[%clk 0:01:00]}  Nc5 {[%clk 0:02:18]} 30. Bc2 {[%clk 0:00:58]}  Rea8 {[%clk 0:02:18]} 31. Rab1 {[%clk 0:00:56]}  R5a6 {[%clk 0:02:18]} 32. Rb2 {[%clk 0:00:53]}  Bc8 {[%clk 0:02:18]} 33. Reb1 {[%clk 0:00:50]}  h6 {[%clk 0:02:17]} 34. Qc3 {[%clk 0:00:40]}  Bd7 {[%clk 0:02:17]} 35. Rb4 {[%clk 0:00:38]}  Ra3 {[%clk 0:02:15]} 36. Qb2 {[%clk 0:00:36]}  Ra2 {[%clk 0:02:16]} 37. Qc1 {[%clk 0:00:34]}  R8a6 {[%clk 0:02:16]} 38. R4b2 {[%clk 0:00:31]}  R2a3 {[%clk 0:02:12]} 39. Rxb6 {[%clk 0:00:23]}  Rxg3+ {[%clk 0:02:12]} 40. hxg3 {[%clk 0:00:22]}  Rxb6 {[%clk 0:02:13]} 41. Rxb6 {[%clk 0:00:19]}  Qxb6 {[%clk 0:02:14]} 42. Qa3 {[%clk 0:00:19]}  g6 {[%clk 0:02:12]} 43. Nb3 {[%clk 0:00:19]}  Na4 {[%clk 0:02:06]} 44. Nc1 {[%clk 0:00:16]}  Qb2 {[%clk 0:01:59]} 45. Qxb2 {[%clk 0:00:14]}  Nxb2 {[%clk 0:02:00]} 46. Bb3 {[%clk 0:00:14]}  Bc8 {[%clk 0:02:00]} 47. Na2 {[%clk 0:00:07]}  Ba6 {[%clk 0:01:59]} 48. c5 {[%clk 0:00:07]}  dxc5 {[%clk 0:02:00]} 49. d6 {[%clk 0:00:07]}  Kf8 {[%clk 0:01:58]} 50. Nc3 {[%clk 0:00:05]}  c4 {[%clk 0:01:56]} 51. Ba4 {[%clk 0:00:03]}  Nd3 {[%clk 0:01:54]} 52. Nd5 {[%clk 0:00:02]}  Bc8 {[%clk 0:01:33]} 53. d7 {[%clk 0:00:03]}  Bxd7 {[%clk 0:01:34]} 54. Bxd7 {[%clk 0:00:04]}  Nc5 {[%clk 0:01:34]} 55. Bb5 {[%clk 0:00:04]}  Nxe4 {[%clk 0:01:34]} 56. Bxc4 {[%clk 0:00:05]}  Nd6 {[%clk 0:01:35]} 57. Be2 {[%clk 0:00:04]}  Kg7 {[%clk 0:01:36]} 58. Kg2 {[%clk 0:00:04]}  f5 {[%clk 0:01:37]} 59. Ne3 {[%clk 0:00:05]}  Kf6 {[%clk 0:01:37]} 60. Nc4 {[%clk 0:00:05]}  Ne4 {[%clk 0:01:37]} 61. Bd3 {[%clk 0:00:05]}  Nc3 {[%clk 0:01:38]} 62. Bc2 {[%clk 0:00:05]}  Nd5 {[%clk 0:01:38]} 63. Ne3 {[%clk 0:00:05]}  Nb4 {[%clk 0:01:39]} 64. Bb3 {[%clk 0:00:05]}  Nc6 {[%clk 0:01:39]} 65. Nd5+ {[%clk 0:00:05]}  Kg7 {[%clk 0:01:39]} 66. Ne3 {[%clk 0:00:06]}  Nd4 {[%clk 0:01:40]} 67. Bc4 {[%clk 0:00:07]}  h5 {[%clk 0:01:40]} 68. f4 {[%clk 0:00:07]}  exf4 {[%clk 0:01:39]} 69. gxf4 {[%clk 0:00:08]}  Nc6 {[%clk 0:01:40]} 70. Bd5 {[%clk 0:00:07]}  Nd4 {[%clk 0:01:40]} 71. Nc4 {[%clk 0:00:07]}  Ne2 {[%clk 0:01:40]} 72. Kf3 {[%clk 0:00:07]}  Nc3 {[%clk 0:01:41]} 73. Be6 {[%clk 0:00:07]}  Kf6 {[%clk 0:01:41]} 74. Bc8 {[%clk 0:00:07]}  Nb5 {[%clk 0:01:41]} 75. Ne5 {[%clk 0:00:07]}  Nd4+ {[%clk 0:01:42]} 76. Kg3 {[%clk 0:00:07]}  Ne2+ {[%clk 0:01:40]} 77. Kf3 {[%clk 0:00:07]}  Nd4+ {[%clk 0:01:41]} 78. Ke3 {[%clk 0:00:07]}  Nb5 {[%clk 0:01:40]} 79. Bb7 {[%clk 0:00:07]}  Nd6 {[%clk 0:01:41]} 80. Bf3 {[%clk 0:00:06]}  Nb5 {[%clk 0:01:40]} 81. Nd7+ {[%clk 0:00:06]}  Kg7 {[%clk 0:01:40]} 82. Nc5 {[%clk 0:00:05]}  Nd6 {[%clk 0:01:40]} 83. Ne6+ {[%clk 0:00:05]}  Kf6 {[%clk 0:01:41]} 84. Ng5 {[%clk 0:00:06]}  Nc4+ {[%clk 0:01:41]} 85. Kd4 {[%clk 0:00:06]}  Nd2 {[%clk 0:01:41]} 86. Bg2 {[%clk 0:00:06]}  Nb3+ {[%clk 0:01:41]} 87. Kd3 {[%clk 0:00:06]}  Nc5+ {[%clk 0:01:41]} 88. Ke3 {[%clk 0:00:06]}  Na4 {[%clk 0:01:41]} 89. Bd5 {[%clk 0:00:06]}  Nc3 {[%clk 0:01:41]} 90. Bc4 {[%clk 0:00:05]}  Nd1+ {[%clk 0:01:41]} 91. Kd2 {[%clk 0:00:04]}  Nf2 {[%clk 0:01:42]} 92. Ke3 {[%clk 0:00:04]}  Ng4+ {[%clk 0:01:42]} 93. Kf3 {[%clk 0:00:04]}  Ke7 {[%clk 0:01:43]} 94. Bd3 {[%clk 0:00:03]}  Nf6 {[%clk 0:01:43]} 95. Ke3 {[%clk 0:00:04]}  Nd5+ {[%clk 0:01:44]} 96. Kf3 {[%clk 0:00:04]}  Kf6 {[%clk 0:01:44]} 97. Nh3 {[%clk 0:00:04]}  Ne7 {[%clk 0:01:44]} 98. Bc4 {[%clk 0:00:04]}  Nc6 {[%clk 0:01:45]} 99. Be2 {[%clk 0:00:04]}  Nd4+ {[%clk 0:01:45]} 100. Ke3 {[%clk 0:00:04]}  Ne6 {[%clk 0:01:46]} 101. Bf3 {[%clk 0:00:04]}  Nc7 {[%clk 0:01:46]} 102. Nf2 {[%clk 0:00:05]}  Ne8 {[%clk 0:01:46]} 103. Nd3 {[%clk 0:00:05]}  Ng7 {[%clk 0:01:47]} 104. Nc5 {[%clk 0:00:04]}  Ke7 {[%clk 0:01:47]} 105. Nd3 {[%clk 0:00:03]}  Ne6 {[%clk 0:01:47]} 106. Ne5 {[%clk 0:00:04]}  Kf6 {[%clk 0:01:47]} 107. Nd3 {[%clk 0:00:04]}  g5 {[%clk 0:01:47]} 108. fxg5+ {[%clk 0:00:04]}  Kxg5 {[%clk 0:01:48]} 109. Bd5 {[%clk 0:00:04]}  f4+ {[%clk 0:01:49]} 110. Kf2 {[%clk 0:00:04]}  Nd4 {[%clk 0:01:49]} 111. Bf3 {[%clk 0:00:04]}  h4 {[%clk 0:01:50]} 112. Ne1 {[%clk 0:00:04]}  h3 {[%clk 0:01:51]} 113. Bh1 {[%clk 0:00:04]}  Nf5 {[%clk 0:01:52]} 114. Nf3+ {[%clk 0:00:05]}  Kg4 {[%clk 0:01:52]} 115. Nh2+ {[%clk 0:00:06]}  Kh4 {[%clk 0:01:53]} 116. Nf3+ {[%clk 0:00:06]}  Kh5 {[%clk 0:01:53]} 117. Ne5 {[%clk 0:00:07]}  Ng3 {[%clk 0:01:54]} 118. Bf3+ {[%clk 0:00:07]}  Kg5 {[%clk 0:01:55]} 119. Ng4 {[%clk 0:00:08]}  Kh4 {[%clk 0:01:55]} 120. Nh2 {[%clk 0:00:08]}  Nf5 {[%clk 0:01:55]} 121. Be4 {[%clk 0:00:08]}  Ng3 {[%clk 0:01:56]} 122. Bf3 {[%clk 0:00:07]}  Nf5 {[%clk 0:01:56]} 123. Be4 {[%clk 0:00:07]}  Ng3 {[%clk 0:01:57]} 124. Bf3 {[%clk 0:00:08]} 1/2-1/2


[Site "https://www.chess.com"]

[Event "Titled Tuesday Blitz July 05 Early 2022"]
[White "So, Wesley"]
[Black "Seemann, Jakub"]
[WhiteFideId "5202213"]
[BlackFideId "21874697"]
[WhiteElo "2763"]
[BlackElo "2033"]
[Result "1-0"]
[Round "04"]
[TimeControl "180+1"]
[Date "2022.07.05"]
[WhiteClock "0:00:28"]
[BlackClock "0:00:02"]

1. d4 {[%clk 0:03:00]}  Nf6 {[%clk 0:02:59]} 2. Bf4 {[%clk 0:02:58]}  e6 {[%clk 0:02:57]} 3. e3 {[%clk 0:02:57]}  c5 {[%clk 0:02:58]} 4. Nd2 {[%clk 0:02:55]}  Nc6 {[%clk 0:02:58]} 5. c3 {[%clk 0:02:54]}  d5 {[%clk 0:02:44]} 6. Bd3 {[%clk 0:02:53]}  Bd6 {[%clk 0:02:37]} 7. Bxd6 {[%clk 0:02:53]}  Qxd6 {[%clk 0:02:37]} 8. f4 {[%clk 0:02:54]}  b6 {[%clk 0:02:26]} 9. Ngf3 {[%clk 0:02:48]}  cxd4 {[%clk 0:02:24]} 10. cxd4 {[%clk 0:02:46]}  Nb4 {[%clk 0:02:20]} 11. Be2 {[%clk 0:02:36]}  O-O {[%clk 0:02:13]} 12. a3 {[%clk 0:02:34]}  Nc6 {[%clk 0:02:11]} 13. Ne5 {[%clk 0:02:28]}  Bb7 {[%clk 0:02:01]} 14. Bd3 {[%clk 0:02:26]}  Qe7 {[%clk 0:01:55]} 15. O-O {[%clk 0:02:23]}  Nd7 {[%clk 0:01:54]} 16. Nxc6 {[%clk 0:02:02]}  Bxc6 {[%clk 0:01:53]} 17. Qc2 {[%clk 0:02:00]}  Rfc8 {[%clk 0:01:44]} 18. Bxh7+ {[%clk 0:02:00]}  Kf8 {[%clk 0:01:45]} 19. Bd3 {[%clk 0:02:00]}  Nf6 {[%clk 0:01:38]} 20. Rac1 {[%clk 0:01:58]}  Ng4 {[%clk 0:01:17]} 21. Rfe1 {[%clk 0:01:53]}  Bb7 {[%clk 0:01:06]} 22. Qd1 {[%clk 0:01:51]}  Qh4 {[%clk 0:01:05]} 23. Nf1 {[%clk 0:01:23]}  Qf2+ {[%clk 0:01:04]} 24. Kh1 {[%clk 0:01:23]}  Rxc1 {[%clk 0:00:18]} 25. Qxc1 {[%clk 0:01:24]}  Rc8 {[%clk 0:00:18]} 26. Qd1 {[%clk 0:01:17]}  f5 {[%clk 0:00:18]} 27. h3 {[%clk 0:01:14]}  Qh4 {[%clk 0:00:16]} 28. Qe2 {[%clk 0:00:41]}  Nf2+ {[%clk 0:00:17]} 29. Kg1 {[%clk 0:00:41]}  Nxd3 {[%clk 0:00:18]} 30. g3 {[%clk 0:00:42]}  Nxf4 {[%clk 0:00:14]} 31. exf4 {[%clk 0:00:43]}  Qf6 {[%clk 0:00:12]} 32. Qf2 {[%clk 0:00:41]}  Ba6 {[%clk 0:00:11]} 33. Nh2 {[%clk 0:00:41]}  Bd3 {[%clk 0:00:11]} 34. Nf3 {[%clk 0:00:39]}  Rc2 {[%clk 0:00:09]} 35. Qe3 {[%clk 0:00:32]}  Be4 {[%clk 0:00:09]} 36. Ne5 {[%clk 0:00:32]}  Qh6 {[%clk 0:00:07]} 37. h4 {[%clk 0:00:33]}  Kg8 {[%clk 0:00:07]} 38. Re2 {[%clk 0:00:32]}  Rxe2 {[%clk 0:00:06]} 39. Qxe2 {[%clk 0:00:33]}  Qf6 {[%clk 0:00:06]} 40. Qb5 {[%clk 0:00:32]}  Qd8 {[%clk 0:00:06]} 41. Qc6 {[%clk 0:00:32]}  Qe7 {[%clk 0:00:03]} 42. Qc8+ {[%clk 0:00:32]}  Kh7 {[%clk 0:00:03]} 43. Qh8+ {[%clk 0:00:31]}  Kxh8 {[%clk 0:00:03]} 44. Ng6+ {[%clk 0:00:32]}  Kg8 {[%clk 0:00:04]} 45. Nxe7+ {[%clk 0:00:33]}  Kf7 {[%clk 0:00:05]} 46. Nc6 {[%clk 0:00:33]}  a5 {[%clk 0:00:04]} 47. Ne5+ {[%clk 0:00:33]}  Ke7 {[%clk 0:00:05]} 48. Kf2 {[%clk 0:00:34]}  Kd6 {[%clk 0:00:05]} 49. Ke3 {[%clk 0:00:34]}  b5 {[%clk 0:00:06]} 50. Nf7+ {[%clk 0:00:30]}  Kc6 {[%clk 0:00:05]} 51. Nd8+ {[%clk 0:00:28]}  Kd7 {[%clk 0:00:03]} 52. Nb7 {[%clk 0:00:29]}  a4 {[%clk 0:00:04]} 53. Nc5+ {[%clk 0:00:28]}  Kd6 {[%clk 0:00:04]} 54. Kd2 {[%clk 0:00:28]}  Bf3 {[%clk 0:00:03]} 55. Kc3 {[%clk 0:00:29]}  Be2 {[%clk 0:00:03]} 56. Kb4 {[%clk 0:00:29]}  Bc4 {[%clk 0:00:04]} 57. Ka5 {[%clk 0:00:28]}  Be2 {[%clk 0:00:04]} 58. Kb6 {[%clk 0:00:28]}  Bc4 {[%clk 0:00:04]} 59. Na6 {[%clk 0:00:28]}  e5 {[%clk 0:00:02]} 60. dxe5+ {[%clk 0:00:28]}  Ke6 {[%clk 0:00:03]} 61. Kc5 {[%clk 0:00:28]}  b4 {[%clk 0:00:02]} 62. Nxb4 {[%clk 0:00:28]} 1-0


[Site "https://www.chess.com"]